fUST/lending_fUST_20260116
["ID","MTS","AMOUNT","RATE_DAILY","PERIOD"]
[402138270,1768545038529,-158596.9518204,0.00015,7]
[402138271,1768545038538,-160.0,0.000151,2]
[402138272,1768545038547,-160.0,0.000151,2]
[402138273,1768545038557,-1500.0,0.000154,2]
[402138274,1768545038566,-1753.572191,0.000154,2]
[402138275,1768545038576,-222.22222221,0.000154,2]
[402138276,1768545038585,-305.33083407,0.00015713,2]
[402138277,1768545038595,-160.0,0.000159,2]
[402138278,1768545038604,-160.0,0.000159,2]
[402138279,1768545038614,-215.94196055,0.00016,2]
[402138280,1768545038623,-160.0,0.000163,2]
[402138281,1768545038633,-160.0,0.000163,2]
[402138282,1768545038643,-169.30188291,0.00016339,2]
[402138283,1768545038652,-176.4,0.00016438,2]
[402138284,1768545038662,-184.59,0.0001644,2]
[402138285,1768545038672,-184.59,0.0001644,2]
[402138286,1768545038683,-184.59,0.0001644,2]
[402138287,1768545038692,-184.59,0.0001644,2]
[402138288,1768545038702,-1041.66666667,0.00016692,2]
[402138289,1768545038711,-46477.03708553,0.0001699,2]
[402138290,1768545038723,-500.0,0.00016999,2]
[402138291,1768545038732,-649.45129274,0.00016999,2]
[402138292,1768545038742,-111527.81167446,0.00017,2]
[402138293,1768545038753,-140511.87845182,0.0001701,3]
[402138294,1768545038762,-176.4,0.00017086,2]
[402138295,1768545038772,-200.0,0.00017603,7]
[402138296,1768545038782,-200.0,0.00017603,7]
[402138297,1768545038792,-200.0,0.00017603,7]
[402138298,1768545038801,-169.30188291,0.00017708,2]
[402138299,1768545038811,-341.01885364,0.00017713,2]
[402138300,1768545038820,-176.4,0.00017733,2]
[402138301,1768545038830,-161.0,0.000179,3]
[402138302,1768545038839,-475.0,0.00017973,2]
[402138303,1768545038849,-475.0,0.00017973,2]
[402138304,1768545038859,-475.0,0.00017973,2]
[402138305,1768545038868,-475.0,0.00017973,2]
[402138306,1768545038877,-475.0,0.00017973,2]
[402138307,1768545038887,-475.0,0.00017973,2]
[402138308,1768545038896,-475.0,0.00017973,2]
[402138309,1768545038905,-475.0,0.00017973,2]
[402138310,1768545038914,-475.0,0.00017973,2]
[402138311,1768545038924,-475.0,0.00017973,2]
[402138312,1768545038933,-475.0,0.00017973,2]
[402138313,1768545038944,-475.0,0.00017973,2]
[402138314,1768545038953,-475.0,0.00017973,2]
[402138315,1768545038962,-475.0,0.00017973,2]
[402138316,1768545038971,-475.0,0.00017973,2]
[402138317,1768545038981,-475.0,0.00017973,2]
[402138318,1768545038991,-475.0,0.00017973,2]
[402138319,1768545039002,-475.0,0.00017973,2]
[402138320,1768545039011,-475.0,0.00017973,2]
[402138321,1768545039021,-475.0,0.00017973,2]
[402138322,1768545039031,-475.0,0.00017973,2]
[402138323,1768545039040,-475.0,0.00017973,2]
[402138324,1768545039049,-475.0,0.00017973,2]
[402138325,1768545039059,-475.0,0.00017973,2]
[402138326,1768545039069,-475.0,0.00017973,2]
[402138327,1768545039079,-475.0,0.00017973,2]
[402138328,1768545039088,-475.0,0.00017973,2]
[402138329,1768545039099,-475.0,0.00017973,2]
[402138330,1768545039108,-475.0,0.00017973,2]
[402138331,1768545039118,-475.0,0.00017973,2]
[402138332,1768545039128,-475.0,0.00017973,2]
[402138333,1768545039137,-475.0,0.00017973,2]
[402138334,1768545039147,-475.0,0.00017973,2]
[402138335,1768545039156,-475.0,0.00017973,2]
[402138336,1768545039164,-475.0,0.00017973,2]
[402138337,1768545039174,-9780.23759133,0.00018,2]
[402138338,1768545039183,-475.0,0.00018004,2]
[402138339,1768545039192,-475.0,0.00018004,2]
[402138340,1768545039201,-475.0,0.00018039,2]
[402138341,1768545039211,-475.0,0.00018039,2]
[402138342,1768545039220,-176.4,0.00018381,2]
[402138343,1768545039229,-475.0,0.00018441,2]
[402138344,1768545039239,-1000.0,0.00018441,2]
[402138345,1768545039248,-1000.0,0.00018441,2]
[402138346,1768545039256,-728.0,0.00018477,2]
[402138347,1768545039265,-2105.0,0.00018568,2]
[402138348,1768545039275,-2105.0,0.00018596,2]
[402138349,1768545039284,-2150.738,0.00018623,2]
[402138350,1768545039295,-151.0,0.00018623,2]
[402138351,1768545039306,-151.0,0.00018623,2]
[402138352,1768545039317,-151.0,0.00018623,2]
[402138353,1768545039326,-172.90748226,0.00018623,2]
[402138354,1768545039335,-151.0,0.00018623,2]
[402138355,1768545039345,-151.0,0.00018623,2]
[402138356,1768545039354,-225.44700967,0.00018623,2]
[402138357,1768545039363,-162.380719,0.00018623,2]
[402138358,1768545039372,-30000.0,0.00018623,2]
[402138359,1768545039381,-168.3888056,0.00018623,2]
[402138360,1768545039390,-174.61919141,0.00018623,2]
[402138361,1768545039400,-181.08010149,0.00018623,2]
[402138362,1768545039410,-187.78006525,0.00018623,2]
[402138363,1768545039419,-194.72792766,0.00018623,2]
[402138364,1768545039431,-201.93286099,0.00018623,2]
[402138365,1768545039440,-209.40437684,0.00018623,2]
[402138366,1768545039450,-1957.856,0.00018623,2]
[402138367,1768545039462,-217.15233878,0.00018623,2]
[402138368,1768545039471,-225.18697532,0.00018623,2]
[402138369,1768545039481,-445.202766,0.00018623,2]
[402138370,1768545039493,-233.51889341,0.00018623,2]
[402138371,1768545039503,-242.15909246,0.00018623,2]
[402138372,1768545039511,-251.11897888,0.00018623,2]
[402138373,1768545039521,-260.4103811,0.00018623,2]
[402138374,1768545039530,-270.0455652,0.00018623,2]
[402138375,1768545039539,-280.03725112,0.00018623,2]
[402138376,1768545039551,-290.39862941,0.00018623,2]
[402138377,1768545039559,-301.1433787,0.00018623,2]
[402138378,1768545039568,-2030.296672,0.00018678,2]
[402138379,1768545039578,-2105.41764886,0.00018733,2]
[402138380,1768545039587,-2183.31810187,0.00018788,2]
[402138381,1768545039597,-728.0,0.00018836,2]
[402138382,1768545039606,-2264.10087164,0.00018843,2]
[402138383,1768545039615,-2347.87260389,0.00018898,2]
[402138384,1768545039624,-151.06450074,0.000189,3]
[402138385,1768545039633,-303.10001603,0.000189,2]
[402138386,1768545039643,-303.10001603,0.000189,2]
[402138387,1768545039652,-212.9220069,0.00018953,2]
[402138388,1768545039661,-19193.0,0.00019,2]
[402138389,1768545039670,-176.4,0.00019029,2]
[402138390,1768545039683,-150.36819208,0.00019041,2]
[402138391,1768545039693,-150.25763675,0.00019041,2]
[402138392,1768545039703,-169.30188291,0.00019078,2]
[402138393,1768545039712,-194.2841096,0.00019078,2]
[402138394,1768545039721,-151.144,0.00019089,2]
[402138395,1768545039731,-303.10001603,0.00019089,2]
[402138396,1768545039740,-303.10001603,0.00019089,2]
[402138397,1768545039750,-2105.0,0.00019106,2]
[402138398,1768545039759,-222.22222221,0.00019121,56]
[402138399,1768545039769,-388.5682192,0.00019123,2]
[402138400,1768545039778,-2230.315306,0.00019171,2]
[402138401,1768545039787,-12208.49782114,0.00019171,2]
[402138413,1768545043636,-413.81285936,0.000129,2]
[402138419,1768545063118,155.0,1e-08,2]
[402138431,1768545310927,2991.8,8.928e-05,2]
[402138439,1768545453079,348.47,7.267e-05,2]
[402138440,1768545453486,696.95,7.613e-05,2]
[402138441,1768545453903,1045.42,7.959e-05,2]
[402138442,1768545454301,1393.89,8.305e-05,2]
[402138443,1768545454702,1742.36,8.651e-05,2]
[402138444,1768545531732,318.58,7.136e-05,2]
[402138445,1768545532148,637.16,7.476e-05,2]
[402138446,1768545532548,955.74,7.816e-05,2]
[402138447,1768545532958,1274.32,8.155e-05,2]
[402138448,1768545533398,1592.91,8.495e-05,2]
[402138449,1768545533799,1911.49,8.835e-05,2]
[402138450,1768545608362,284.19,7.077e-05,2]
[402138451,1768545609196,568.38,7.414e-05,2]
[402138452,1768545609288,852.57,7.751e-05,2]
[402138453,1768545609654,1136.76,8.088e-05,2]
[402138454,1768545610054,467.91,8.425e-05,2]
[402138455,1768545610080,953.04,8.425e-05,2]
[402138456,1768545610457,1705.13,8.762e-05,2]
[402138457,1768545686603,221.39,7.083e-05,2]
[402138458,1768545686998,442.79,7.421e-05,2]
[402138459,1768545687462,664.18,7.758e-05,2]
[402138460,1768545687842,885.57,8.095e-05,2]
[402138461,1768545688239,1106.97,8.432e-05,2]
[402138462,1768545688654,1328.36,8.77e-05,2]
[402138463,1768545764556,162.22,7.214e-05,2]
[402138464,1768545765279,324.44,7.557e-05,2]
[402138465,1768545765671,486.66,7.901e-05,2]
[402138466,1768545766331,648.88,8.244e-05,2]
[402138467,1768545766632,811.1,8.588e-05,2]
[402138468,1768545842370,227.37,7.271e-05,2]
[402138469,1768545842791,454.74,7.617e-05,2]
[402138470,1768545843203,682.11,7.963e-05,2]
[402138471,1768545843604,909.48,8.31e-05,2]
[402138472,1768545844009,1136.85,8.656e-05,2]
[402138473,1768545920578,183.96,7.367e-05,2]
[402138474,1768545920989,367.93,7.718e-05,2]
[402138475,1768545921391,551.89,8.069e-05,2]
[402138476,1768545921792,735.85,8.419e-05,2]
[402138477,1768545922212,919.81,8.77e-05,2]
[402138478,1768546000265,297.69,7.591e-05,2]
[402138479,1768546000665,446.53,7.936e-05,2]
[402138480,1768546001067,595.37,8.282e-05,2]
[402138481,1768546001477,744.21,8.627e-05,2]
[402138485,1768546076625,244.64,7.449e-05,2]
[402138486,1768546077037,366.97,7.788e-05,2]
[402138487,1768546077433,489.29,8.127e-05,2]
[402138488,1768546077864,611.61,8.465e-05,2]
[402138489,1768546078255,733.93,8.804e-05,2]
[402138490,1768546138396,-197.19152444,9.129e-05,2]
[402138491,1768546138422,-802.80847556,9.142e-05,2]
[402138492,1768546140451,-53.44152444,9.142e-05,2]
[402138493,1768546140472,-549.0,9.175e-05,2]
[402138494,1768546140495,-397.55847556,9.481e-05,2]
[402138495,1768546141581,-581.01152444,9.481e-05,2]
[402138496,1768546153677,203.5,7.861e-05,2]
[402138497,1768546154117,271.33,8.203e-05,2]
[402138498,1768546154505,339.16,8.544e-05,2]
[402138499,1768546154962,407.0,8.886e-05,2]
[402138519,1768546215354,-474.83,9.228e-05,2]
[402138520,1768546215378,-525.17,9.57e-05,2]
[402138521,1768546217832,-17.49,9.57e-05,2]
[402138522,1768546226095,157.37,8.133e-05,2]
[402138523,1768546226467,196.72,8.472e-05,2]
[402138524,1768546226859,236.06,8.811e-05,2]
[402138539,1768546232236,-275.4,9.15e-05,2]
[402138540,1768546232246,-314.75,9.489e-05,2]
[402138541,1768546232255,-354.09,9.827e-05,2]
[402138542,1768546232265,-393.43,0.00010166,2]
[402138543,1768546232275,-300.0,0.0001019,2]
[402138544,1768546232284,-300.0,0.0001019,2]
[402138546,1768546232531,-300.0,0.0001019,2]
[402138547,1768546232542,-1200.0,0.0001019,2]
[402138548,1768546232551,-300.0,0.0001019,2]
[402138549,1768546232559,-232.68599884,0.00011129,2]
[402138550,1768546232568,-33620.28244499,0.00011129,2]
[402138581,1768546238365,-1593.53974804,0.00011129,2]
[402138584,1768546238376,-4269.35212161,0.00011129,2]
[402138586,1768546238388,-2084.42943746,0.00011129,2]
[402138588,1768546238400,-2088.03168191,0.00011129,2]
[402138592,1768546238426,-865.64963724,0.00011129,2]
[402138646,1768546240562,-5478.71492875,0.00011129,2]
[402138647,1768546240572,-301.0,0.00011207,2]
[402138649,1768546240582,-301.0,0.00011207,2]
[402138650,1768546240591,-301.0,0.00011209,2]
[402138651,1768546240601,-1200.0,0.00011209,2]
[402138652,1768546240611,-4125.60612816,0.000129,2]
[402138653,1768546240620,-268.18047324,0.00013129,2]
[402138654,1768546240630,-500.0,0.00013273,2]
[402138655,1768546240639,-4125.60612812,0.0001342,2]
[402138656,1768546240648,-475.8562598,0.00013698,2]
[402138657,1768546240658,-12292.2698787,0.00013699,2]
[402138658,1768546240667,-500.0,0.00013699,2]
[402138659,1768546240677,-2060.41,0.00013775,2]
[402138660,1768546240686,-1000.0,0.00013821,2]
[402138661,1768546240696,-1000.0,0.00014247,2]
[402138662,1768546240706,-1500.0,0.00014368,2]
[402138663,1768546240715,-1500.0,0.00014795,2]
[402138664,1768546240725,-2000.0,0.00014916,2]
[402138665,1768546240735,-15000.0,0.00015,2]
[402138666,1768546240744,-164.322877,0.00015068,2]
[402138667,1768546240754,-303.67494764,0.00015129,2]
[402138668,1768546240763,-2000.0,0.00015342,2]
[402138669,1768546240772,-2505.66172212,0.00015464,2]
[402138670,1768546240782,-2500.0,0.0001589,2]
[402138671,1768546240792,-287.8,0.00016438,2]
[402138672,1768546240802,-164.33129574,0.00016438,2]
[402138673,1768546240811,-1513.63240842,0.00016438,2]
[402138674,1768546240821,-200.10020518,0.00016473,2]
[402138675,1768546240830,-1041.66666667,0.0001669,2]
[402138676,1768546240840,-10248.48755799,0.00017,2]
[402138677,1768546240878,-833.49799299,0.00017,2]
[402138694,1768546243602,-771.99000221,0.00015733,2]
[402138695,1768546243614,-3353.61612591,0.00015733,2]
[402138696,1768546243624,-3918.01444902,0.00017,2]
[402138697,1768546243633,-287.8,0.00017086,2]
[402138698,1768546243642,-339.16942204,0.00017129,2]
[402138699,1768546243652,-475.0,0.00017534,2]
[402138700,1768546243661,-475.0,0.00017534,2]
[402138701,1768546243670,-475.0,0.00017534,2]
[402138702,1768546243680,-475.0,0.00017534,2]
[402138703,1768546243689,-475.0,0.00017534,2]
[402138704,1768546243699,-475.0,0.00017534,2]
[402138705,1768546243709,-475.0,0.00017534,2]
[402138706,1768546243718,-475.0,0.00017534,2]
[402138707,1768546243728,-475.0,0.00017534,2]
[402138708,1768546243737,-475.0,0.00017534,2]
[402138709,1768546243747,-475.0,0.00017534,2]
[402138710,1768546243757,-475.0,0.00017534,2]
[402138712,1768546243766,-475.0,0.00017534,2]
[402138714,1768546243775,-475.0,0.00017534,2]
[402138716,1768546243784,-475.0,0.00017534,2]
[402138717,1768546243793,-90.83826583,0.00017534,2]
[402138723,1768546246428,-384.16173417,0.00017534,2]
[402138724,1768546246437,-475.0,0.00017534,2]
[402138725,1768546246447,-475.0,0.00017534,2]
[402138726,1768546246456,-475.0,0.00017534,2]
[402138727,1768546246465,-475.0,0.00017534,2]
[402138728,1768546246475,-475.0,0.00017534,2]
[402138729,1768546246485,-475.0,0.00017534,2]
[402138731,1768546246494,-475.0,0.00017534,2]
[402138732,1768546246503,-475.0,0.00017534,2]
[402138733,1768546246512,-475.0,0.00017534,2]
[402138734,1768546246521,-475.0,0.00017534,2]
[402138736,1768546246530,-475.0,0.00017534,2]
[402138737,1768546246540,-475.0,0.00017534,2]
[402138738,1768546246549,-475.0,0.00017534,2]
[402138739,1768546246558,-475.0,0.00017534,2]
[402138740,1768546246568,-475.0,0.00017534,2]
[402138741,1768546246577,-500.0,0.00017548,2]
[402138742,1768546246586,-150.36819208,0.00017565,2]
[402138743,1768546246596,-406.32451902,0.000176,2]
[402138744,1768546246605,-475.0,0.000176,2]
[402138745,1768546246615,-200.0,0.00017603,7]
[402138746,1768546246624,-200.0,0.00017603,7]
[402138747,1768546246634,-200.0,0.00017603,7]
[402138748,1768546246643,-3138.04118865,0.00017663,2]
[402138749,1768546246652,-500.0,0.000177,2]
[402138750,1768546246662,-214.45777738,0.000177,2]
[402138751,1768546246672,-500.0,0.000177,2]
[402138752,1768546246681,-529.36191254,0.000177,2]
[402138753,1768546246690,-500.0,0.000177,2]
[402138754,1768546246700,-500.0,0.000177,2]
[402138755,1768546246711,-324.70578866,0.000177,2]
[402138756,1768546246720,-252.96086109,0.000177,2]
[402138757,1768546246730,-475.0,0.00017733,2]
[402138758,1768546246740,-287.8,0.00017733,2]
[402138759,1768546246749,-406.32451899,0.0001805,2]
[402138760,1768546246758,-151.14258472,0.00018113,2]
[402138761,1768546246767,-304.0,0.00018341,2]
[402138762,1768546246777,-287.8,0.00018381,2]
[402138763,1768546246786,-406.32451899,0.000185,2]
[402138764,1768546246796,-701.0,0.00018603,2]
[402138765,1768546246806,-714.01,0.00018674,3]
[402138766,1768546246815,-5000.0,0.00018683,2]
[402138767,1768546246824,-2597.2162153,0.00018684,2]
[402138768,1768546246833,-250.0,0.00018684,2]
[402138769,1768546246843,-445.202766,0.00018684,2]
[402138770,1768546246853,-151.0,0.00018684,2]
[402138771,1768546246862,-162.380719,0.00018684,2]
[402138772,1768546246874,-250.0,0.00018684,2]
[402138773,1768546246883,-151.0,0.00018684,2]
[402138774,1768546246893,-250.0,0.00018684,2]
[402138775,1768546246902,-151.0,0.00018684,2]
[402138776,1768546246913,-250.0,0.00018684,2]
[402138777,1768546246922,-151.0,0.00018684,2]
[402138778,1768546246931,-30000.0,0.00018684,2]
[402138779,1768546247005,-2150.738,0.00018684,2]
[402138780,1768546247015,-250.0,0.00018684,2]
[402138781,1768546247024,-883.897183,0.00018684,2]
[402138819,1768546631829,4998.22,5e-05,2]
[402138820,1768546631865,18.67886437,5e-05,2]
[402138831,1768547040381,-572.934128,0.00015238,2]
[402138832,1768547040411,-171.51519144,0.00015238,2]
[402138833,1768547040440,-640.0,0.00015238,2]
[402138834,1768547045487,231.10136112,0.00015138,2]
[402138837,1768547156397,271.03,7.675e-05,2]
[402138838,1768547156825,406.54,8.024e-05,2]
[402138839,1768547157237,542.06,8.373e-05,2]
[402138840,1768547157664,677.57,8.722e-05,2]
[402138874,1768547432409,-168.08488761,9.246e-05,2]
[402138875,1768547432419,-287.74,9.893e-05,2]
[402138876,1768547432429,-575.47,0.00010364,2]
[402138877,1768547432440,-863.21,0.00010835,2]
[402138878,1768547432450,-198.34016738,0.00011245,2]
[402138879,1768547432459,-1150.94,0.00011306,2]
[402138880,1768547432469,-1438.68,0.00011777,2]
[402138881,1768547432480,-1726.41,0.00012248,2]
[402138882,1768547432490,-2014.15,0.00012618,2]
[402138883,1768547432500,-300.0,0.00013084,2]
[402138884,1768547432510,-345.69269924,0.00013085,2]
[402138885,1768547432522,-569.47179357,0.00013085,2]
[402138886,1768547432534,-1386.72550719,0.00013085,2]
[402138887,1768547432544,-2578.50383011,0.00013145,2]
[402138888,1768547432553,-4749.04169739,0.00013245,2]
[402138891,1768547438509,-6630.26468874,0.00013245,2]
[402138893,1768547438521,-17291.96669793,0.00013245,2]
[402138895,1768547438531,-228.59544715,0.00013246,2]
[402138897,1768547438540,-2589.62,0.00013553,2]
[402138899,1768547438550,-2877.36,0.0001402,2]
[402138901,1768547438559,-420.0,0.00014348,2]
[402138903,1768547438569,-2578.50383007,0.00015167,2]
[402138905,1768547438578,-258.85072692,0.00015246,2]
[402138907,1768547438587,-1000.0,0.00015357,2]
[402138909,1768547438597,-308.34030894,0.000154,2]
[402138911,1768547438606,-154.17015447,0.000154,2]
[402138913,1768547438614,-153.0,0.00015733,2]
[402138915,1768547438624,-3000.0,0.00016,2]
[402138917,1768547438632,-3000.0,0.0001601,2]
[402138919,1768547438642,-3000.0,0.0001602,2]
[402138921,1768547438651,-3000.0,0.0001603,2]
[402138923,1768547438660,-3000.0,0.0001604,2]
[402138925,1768547438669,-4604.235543,0.0001605,2]
[402138927,1768547438679,-475.0,0.00016473,2]
[402138928,1768547438687,-475.0,0.00016473,2]
[402138929,1768547438697,-475.0,0.00016473,2]
[402138930,1768547438706,-475.0,0.00016473,2]
[402138931,1768547438715,-475.0,0.00016473,2]
[402138932,1768547438724,-475.0,0.00016473,2]
[402138933,1768547438735,-475.0,0.00016473,2]
[402138934,1768547438743,-475.0,0.00016473,2]
[402138935,1768547438752,-475.0,0.00016473,2]
[402138936,1768547438761,-475.0,0.00016473,2]
[402138937,1768547438770,-475.0,0.00016473,2]
[402138938,1768547438779,-475.0,0.00016473,2]
[402138939,1768547438788,-475.0,0.00016473,2]
[402138940,1768547438796,-475.0,0.00016473,2]
[402138941,1768547438806,-475.0,0.00016473,2]
[402138942,1768547438815,-475.0,0.00016473,2]
[402138943,1768547438824,-475.0,0.00016473,2]
[402138944,1768547438833,-475.0,0.00016473,2]
[402138945,1768547438842,-475.0,0.00016473,2]
[402138946,1768547438851,-475.0,0.00016473,2]
[402138947,1768547438859,-475.0,0.00016473,2]
[402138948,1768547438868,-475.0,0.00016473,2]
[402138949,1768547438882,-475.0,0.00016473,2]
[402138950,1768547438891,-475.0,0.000165,2]
[402138951,1768547438901,-191.9,0.00017086,2]
[402138952,1768547438910,-1041.66666667,0.00017107,2]
[402138953,1768547438920,-1149.2121497,0.00017188,2]
[402138954,1768547438931,-937.73,0.00017188,2]
[402138955,1768547439057,-491.56168037,0.00017188,2]
[402138957,1768547439066,-289.10600669,0.00017246,2]
[402138959,1768547439075,-535.01612294,0.00017471,2]
[402139047,1768547440724,-190.52761816,0.00017471,2]
[402139048,1768547440734,-2902.17496439,0.00017471,2]
[402139049,1768547440743,-6529.89366988,0.00017471,2]
[402139050,1768547440752,-3000.0,0.00017534,7]
[402139052,1768547440761,-1011.57312113,0.00017534,2]
[402139054,1768547440771,-200.0,0.00017603,7]
[402139055,1768547440780,-200.0,0.00017603,7]
[402139056,1768547440790,-200.0,0.00017603,7]
[402139057,1768547440799,-3882.72855144,0.00017623,2]
[402139058,1768547440808,-191.9,0.00017733,2]
[402139059,1768547440817,-1740.0,0.0001822,2]
[402139061,1768547440826,-1740.0,0.00018262,2]
[402139062,1768547440835,-1740.0,0.00018268,2]
[402139063,1768547440844,-163.84556264,0.000183,7]
[402139064,1768547440853,-1740.0,0.00018334,2]
[402139065,1768547440862,-1740.0,0.00018353,2]
[402139066,1768547440874,-191.9,0.00018381,2]
[402139067,1768547440883,-977.79949383,0.0001839,2]
[402139068,1768547440893,-3907.28677733,0.0001839,2]
[402139069,1768547440902,-162.52980762,0.00018423,2]
[402139070,1768547440912,-32934.1835952,0.0001843,2]
[402139071,1768547440922,-5000.0,0.00018513,2]
[402139072,1768547440931,-499.62,0.00018514,3]
[402139073,1768547440941,-249.81,0.00018514,3]
[402139074,1768547440950,-749.45,0.00018514,3]
[402139075,1768547440959,-151.0,0.00018524,2]
[402139076,1768547440968,-151.0,0.00018524,2]
[402139077,1768547440977,-151.0,0.00018524,2]
[402139078,1768547440986,-151.0,0.00018524,2]
[402139079,1768547440995,-151.0,0.00018524,2]
[402139080,1768547441005,-151.0,0.00018524,2]
[402139081,1768547441014,-151.0,0.00018524,2]
[402139082,1768547441023,-157.05257652,0.00018524,2]
[402139083,1768547441033,-445.202766,0.00018524,2]
[402139084,1768547441043,-250.0,0.00018524,2]
[402139085,1768547441052,-1000.0,0.00018524,2]
[402139086,1768547441061,-250.0,0.00018524,2]
[402139087,1768547441072,-1000.0,0.00018524,2]
[402139088,1768547441081,-250.0,0.00018524,2]
[402139089,1768547441090,-1000.0,0.00018524,2]
[402139090,1768547441099,-151.0,0.00018524,2]
[402139091,1768547441108,-250.0,0.00018524,2]
[402139092,1768547441117,-1000.0,0.00018524,2]
[402139093,1768547441130,-151.0,0.00018524,2]
[402139094,1768547441139,-250.0,0.00018524,2]
[402139095,1768547441148,-151.0,0.00018524,2]
[402139096,1768547441158,-1000.0,0.00018524,2]
[402139097,1768547441167,-250.0,0.00018524,2]
[402139098,1768547441176,-164.58889883,0.00018524,2]
[402139099,1768547441186,-151.0,0.00018524,2]
[402139100,1768547441195,-1000.0,0.00018524,2]
[402139101,1768547441204,-151.0,0.00018524,2]
[402139102,1768547441213,-250.0,0.00018524,2]
[402139103,1768547441223,-151.0,0.00018524,2]
[402139104,1768547441232,-1000.0,0.00018524,2]
[402139105,1768547441242,-250.0,0.00018524,2]
[402139106,1768547441251,-156.587,0.00018524,2]
[402139107,1768547441261,-306.61894925,0.00018524,2]
[402139108,1768547441270,-151.0,0.00018524,2]
[402139109,1768547441279,-1000.0,0.00018524,2]
[402139110,1768547441288,-229.59497629,0.00018524,2]
[402139111,1768547441298,-152.49314636,0.00018524,2]
[402139112,1768547441307,-151.0,0.00018524,2]
[402139113,1768547441316,-1000.0,0.00018524,2]
[402139114,1768547441325,-151.0,0.00018524,2]
[402139115,1768547441335,-2150.738,0.00018524,2]
[402139116,1768547441344,-1000.0,0.00018524,2]
[402139117,1768547441353,-251.71795936,0.00018524,2]
[402139118,1768547441363,-151.0,0.00018524,2]
[402139119,1768547441372,-1000.0,0.00018524,2]
[402139120,1768547441382,-151.0,0.00018524,2]
[402139121,1768547441391,-1000.0,0.00018524,2]
[402139122,1768547441400,-151.0,0.00018524,2]
[402139123,1768547441409,-151.0,0.00018524,2]
[402139124,1768547441419,-1000.0,0.00018524,2]
[402139125,1768547441428,-151.0,0.00018524,2]
[402139126,1768547441437,-151.0,0.00018524,2]
[402139127,1768547441446,-1000.0,0.00018524,2]
[402139128,1768547441456,-151.0,0.00018524,2]
[402139129,1768547441466,-1000.0,0.00018524,2]
[402139130,1768547441475,-151.0,0.00018524,2]
[402139131,1768547441484,-151.0,0.00018524,2]
[402139132,1768547441493,-162.380719,0.00018524,2]
[402139133,1768547441503,-1000.0,0.00018524,2]
[402139134,1768547441512,-151.0,0.00018524,2]
[402139135,1768547441521,-168.3888056,0.00018524,2]
[402139136,1768547441530,-1000.0,0.00018524,2]
[402139137,1768547441540,-151.0,0.00018524,2]
[402139138,1768547441549,-151.0,0.00018524,2]
[402139139,1768547441558,-151.0,0.00018524,2]
[402139140,1768547441567,-174.61919141,0.00018524,2]
[402139141,1768547441576,-1000.0,0.00018524,2]
[402139142,1768547441585,-151.0,0.00018524,2]
[402139143,1768547441595,-151.0,0.00018524,2]
[402139144,1768547441604,-151.0,0.00018524,2]
[402139145,1768547441616,-181.08010149,0.00018524,2]
[402139146,1768547441625,-1957.856,0.00018524,2]
[402139147,1768547441634,-151.0,0.00018524,2]
[402139148,1768547441643,-151.0,0.00018524,2]
[402139149,1768547441651,-151.0,0.00018524,2]
[402139150,1768547441660,-187.78006525,0.00018524,2]
[402139151,1768547441669,-151.0,0.00018524,2]